fUSD/lending_fUSD_20240419
["ID","MTS","AMOUNT","RATE_DAILY","PERIOD"]
[322902591,1713490244914,-1367.07,0.00016438,2]
[322902592,1713490244924,-500.0,0.00016438,2]
[322902593,1713490244933,-1006.58,0.00016438,2]
[322902594,1713490244942,-500.0,0.00016438,2]
[322902595,1713490244951,-500.0,0.00016438,2]
[322902596,1713490244961,-1305.59,0.00016438,2]
[322902597,1713490244970,-500.0,0.00016438,2]
[322902598,1713490244979,-500.0,0.00016438,2]
[322902599,1713490244989,-500.0,0.00016438,2]
[322902600,1713490244998,-1585.97,0.00016438,2]
[322902601,1713490245008,-500.0,0.00016438,2]
[322902602,1713490245017,-500.00000012,0.00016438,2]
[322902603,1713490245026,-500.0,0.00016438,2]
[322902604,1713490245035,-500.0,0.00016438,2]
[322902605,1713490245047,-563.76962274,0.00016438,2]
[322902606,1713490245056,-500.0,0.00016438,2]
[322902607,1713490245065,-500.0,0.00016438,2]
[322902608,1713490245077,-500.0,0.00016438,2]
[322902609,1713490245086,-912.36,0.00016438,2]
[322902610,1713490245095,-1080.06,0.00016438,2]
[322902611,1713490245103,-1408.9,0.00016438,2]
[322902612,1713490245113,-500.0,0.00016438,2]
[322902613,1713490245122,-500.0,0.00016438,2]
[322902614,1713490245131,-500.0,0.00016438,2]
[322902615,1713490245140,-2963.82,0.00016438,2]
[322902616,1713490245150,-1362.37,0.00016438,2]
[322902617,1713490245159,-500.0,0.00016438,2]
[322902618,1713490245169,-1310.15,0.00016438,2]
[322902619,1713490245179,-500.0,0.00016438,2]
[322902620,1713490245189,-725.76,0.00016438,2]
[322902621,1713490245198,-500.0,0.00016438,2]
[322902622,1713490245207,-910.5,0.00016438,2]
[322902623,1713490245216,-500.0,0.00016438,2]
[322902624,1713490245227,-500.0,0.00016438,2]
[322902625,1713490245236,-500.0,0.00016438,2]
[322902626,1713490245245,-500.0,0.00016438,2]
[322902627,1713490245256,-2546.58,0.00016438,2]
[322902628,1713490245264,-1394.51,0.00016438,2]
[322902629,1713490245274,-500.0,0.00016438,2]
[322902630,1713490245283,-500.0,0.00016438,2]
[322902631,1713490245293,-500.0,0.00016438,2]
[322902632,1713490245302,-627.98196879,0.00016438,2]
[322902633,1713490245311,-922.02,0.00016438,2]
[322902634,1713490245323,-3589.43,0.00016438,2]
[322902635,1713490245333,-974.08,0.00016438,2]
[322902636,1713490245342,-500.0,0.00016438,2]
[322902637,1713490245351,-607.97,0.00016438,2]
[322902638,1713490245360,-500.0,0.00016438,2]
[322902639,1713490245369,-500.0,0.00016438,2]
[322902640,1713490245379,-1617.36,0.00016438,2]
[322902641,1713490245389,-994.61,0.00016438,2]
[322902642,1713490245398,-500.0,0.00016438,2]
[322902643,1713490245408,-500.0,0.00016438,2]
[322902644,1713490245417,-500.0,0.00016438,2]
[322902645,1713490245426,-999.49,0.00016438,2]
[322902646,1713490245435,-500.0,0.00016438,2]
[322902647,1713490245445,-500.0,0.00016438,2]
[322902648,1713490245454,-697.61,0.00016438,2]
[322902649,1713490245463,-633.19,0.00016438,2]
[322902650,1713490245473,-500.0,0.00016438,2]
[322902651,1713490245485,-500.0,0.00016438,2]
[322902652,1713490245494,-3062.62,0.00016438,2]
[322902653,1713490245503,-500.0,0.00016438,2]
[322902654,1713490245513,-500.0,0.00016438,2]
[322902655,1713490245522,-500.0,0.00016438,2]
[322902656,1713490245532,-500.0,0.00016438,2]
[322902657,1713490245541,-500.0,0.00016438,2]
[322902658,1713490245550,-500.0,0.00016438,2]
[322902659,1713490245561,-500.0,0.00016438,2]
[322902660,1713490245574,-2144.02,0.00016438,2]
[322902661,1713490245583,-1216.15,0.00016438,2]
[322902662,1713490245593,-206.07898966,0.00016438,2]
[322902663,1713490245602,-1178.61,0.00016438,2]
[322902664,1713490245612,-1137.93,0.00016438,2]
[322902665,1713490245622,-3144.51,0.00016438,2]
[322902666,1713490245631,-500.0,0.00016438,2]
[322902667,1713490245641,-500.0,0.00016438,2]
[322902668,1713490245651,-500.0,0.00016438,2]
[322902669,1713490245661,-578.71526422,0.00016438,2]
[322902670,1713490245670,-500.0,0.00016438,2]
[322902671,1713490245680,-1696.71,0.00016438,2]
[322902672,1713490245689,-3363.59,0.00016438,2]
[322902673,1713490245699,-500.0,0.00016438,2]
[322902674,1713490245708,-500.0,0.00016438,2]
[322902675,1713490245717,-500.0,0.00016438,2]
[322902676,1713490245726,-1243.87,0.00016438,2]
[322902677,1713490245736,-1209.45,0.00016438,2]
[322902678,1713490245745,-500.0,0.00016438,2]
[322902679,1713490245755,-1377.54,0.00016438,2]
[322902680,1713490245764,-500.0,0.00016438,2]
[322902681,1713490245774,-1776.3,0.00016438,2]
[322902682,1713490245782,-1614.3,0.00016438,2]
[322902683,1713490245793,-500.0,0.00016438,2]
[322902685,1713490245803,-500.0,0.00016438,2]
[322902686,1713490245813,-853.91,0.00016438,2]
[322902687,1713490245825,-837.22,0.00016438,2]
[322902688,1713490245834,-500.0,0.00016438,2]
[322902690,1713490245843,-500.0,0.00016438,2]
[322902691,1713490245852,-1911.31,0.00016438,2]
[322902692,1713490245861,-500.0,0.00016438,2]
[322902693,1713490245870,-789.21,0.00016438,2]
[322902694,1713490245879,-1478.39,0.00016438,2]
[322902695,1713490245888,-500.0,0.00016438,2]
[322902696,1713490245897,-500.0,0.00016438,2]
[322902697,1713490245906,-500.0,0.00016438,2]
[322902698,1713490245915,-645.15,0.00016438,2]
[322902699,1713490245924,-742.74,0.00016438,2]
[322902700,1713490245934,-539.73,0.00016438,2]
[322902701,1713490245943,-500.0,0.00016438,2]
[322902702,1713490245952,-2972.98,0.00016438,2]
[322902703,1713490245962,-500.0,0.00016438,2]
[322902704,1713490245971,-2390.41,0.00016438,2]
[322902705,1713490245980,-500.0,0.00016438,2]
[322902706,1713490245989,-500.0,0.00016438,2]
[322902707,1713490245998,-500.0,0.00016438,2]
[322902708,1713490246007,-1070.77,0.00016438,2]
[322902709,1713490246017,-828.55,0.00016438,2]
[322902710,1713490246026,-845.84,0.00016438,2]
[322902711,1713490246036,-500.0,0.00016438,2]
[322902712,1713490246044,-4446.26,0.00016438,2]
[322902713,1713490246054,-988.84,0.00016438,2]
[322902714,1713490246063,-535.51921748,0.00016438,2]
[322902715,1713490246076,-500.0,0.00016438,2]
[322902716,1713490246087,-1848.79,0.00016438,2]
[322902717,1713490246097,-2000.0,0.00016438,2]
[322902718,1713490246106,-500.0,0.00016438,2]
[322902719,1713490246115,-500.0,0.00016438,2]
[322902720,1713490246125,-500.0,0.00016438,2]
[322902721,1713490246134,-970.74,0.00016438,2]
[322902722,1713490246144,-1058.92,0.00016438,2]
[322902723,1713490246153,-500.0,0.00016438,2]
[322902724,1713490246162,-500.0,0.00016438,2]
[322902725,1713490246171,-500.0,0.00016438,2]
[322902726,1713490246180,-320.97036389,0.00016438,2]
[322902727,1713490246189,-500.0,0.00016438,2]
[322902728,1713490246199,-500.0,0.00016438,2]
[322902729,1713490246208,-1076.86,0.00016438,2]
[322902730,1713490246217,-500.0,0.00016438,2]
[322902731,1713490246226,-500.0,0.00016438,2]
[322902732,1713490246236,-500.0,0.00016438,2]
[322902733,1713490246245,-500.0,0.00016438,2]
[322902734,1713490246254,-500.0,0.00016438,2]
[322902735,1713490246263,-1296.38,0.00016438,2]
[322902736,1713490246273,-1709.9,0.00016438,2]
[322902737,1713490246282,-500.0,0.00016438,2]
[322902738,1713490246291,-503.05309634,0.00016438,2]
[322902739,1713490246301,-500.0,0.00016438,2]
[322902740,1713490246310,-500.0,0.00016438,2]
[322902741,1713490246320,-500.0,0.00016438,2]
[322902742,1713490246333,-942.15,0.00016438,2]
[322902743,1713490246343,-591.68,0.00016438,2]
[322902744,1713490246352,-765.82,0.00016438,2]
[322902745,1713490246362,-919.88,0.00016438,2]
[322902746,1713490246372,-1162.49,0.00016438,2]
[322902747,1713490246382,-500.0,0.00016438,2]
[322902748,1713490246391,-505.22,0.00016438,2]
[322902749,1713490246401,-3504.41,0.00016438,2]
[322902750,1713490246411,-500.0,0.00016438,2]
[322902751,1713490246420,-500.0,0.00016438,2]
[322902752,1713490246430,-1749.16,0.00016438,2]
[322902753,1713490246440,-566.63371611,0.00016438,2]
[322902754,1713490246450,-500.0,0.00016438,2]
[322902755,1713490246459,-1106.8,0.00016438,2]
[322902756,1713490246470,-2033.51,0.00016438,2]
[322902757,1713490246481,-500.0,0.00016438,2]
[322902758,1713490246491,-1101.63,0.00016438,2]
[322902759,1713490246501,-500.0,0.00016438,2]
[322902760,1713490246511,-1293.03,0.00016438,2]
[322902761,1713490246521,-500.0,0.00016438,2]
[322902762,1713490246530,-500.0,0.00016438,2]
[322902763,1713490246540,-500.0,0.00016438,2]
[322902764,1713490246550,-1141.36,0.00016438,2]
[322902765,1713490246560,-689.59,0.00016438,2]
[322902766,1713490246572,-500.0,0.00016438,2]
[322902767,1713490246582,-500.0,0.00016438,2]
[322902769,1713490246591,-500.0,0.00016438,2]
[322902770,1713490246600,-500.0,0.00016438,2]
[322902771,1713490246609,-500.0,0.00016438,2]
[322902772,1713490246619,-500.0,0.00016438,2]
[322902773,1713490246628,-1030.1,0.00016438,2]
[322902774,1713490246637,-500.0,0.00016438,2]
[322902775,1713490246646,-500.0,0.00016438,2]
[322902776,1713490246656,-367.68895664,0.00016438,2]
[322902777,1713490246666,-3050.69,0.00016438,2]
[322902778,1713490246675,-500.0,0.00016438,2]
[322902779,1713490246684,-2412.84,0.00016438,2]
[322902780,1713490246693,-500.0,0.00016438,2]
[322902781,1713490246703,-921.26,0.00016438,2]
[322902782,1713490246712,-3643.28,0.00016438,2]
[322902783,1713490246721,-508.01449298,0.00016438,2]
[322902784,1713490246730,-500.0,0.00016438,2]
[322902785,1713490246740,-5000.0,0.00016438,2]
[322902786,1713490246749,-500.0,0.00016438,2]
[322902787,1713490246758,-1276.83,0.00016438,2]
[322902788,1713490246767,-500.0,0.00016438,2]
[322902789,1713490246776,-1328.99,0.00016438,2]
[322902790,1713490246785,-500.0,0.00016438,2]
[322902791,1713490246794,-500.0,0.00016438,2]
[322902792,1713490246805,-3699.85,0.00016438,2]
[322902793,1713490246814,-500.0,0.00016438,2]
[322902794,1713490246824,-1156.66,0.00016438,2]
[322902795,1713490246834,-500.0,0.00016438,2]
[322902796,1713490246843,-3129.59,0.00016438,2]
[322902797,1713490246852,-1024.37,0.00016438,2]
[322902798,1713490246861,-500.0,0.00016438,2]
[322902799,1713490246870,-2452.27,0.00016438,2]
[322902800,1713490246879,-606.8,0.00016438,2]
[322902801,1713490246888,-500.0,0.00016438,2]
[322902802,1713490246898,-500.0,0.00016438,2]
[322902803,1713490246907,-500.0,0.00016438,2]
[322902804,1713490246917,-604.23,0.00016438,2]
[322902805,1713490246926,-500.0,0.00016438,2]
[322902806,1713490246935,-613.09,0.00016438,2]
[322902807,1713490246945,-500.0,0.00016438,2]
[322902808,1713490246954,-1308.84,0.00016438,2]
[322902809,1713490246964,-5979.94,0.00016438,2]
[322902810,1713490246973,-590.61,0.00016438,2]
[322902811,1713490246982,-1085.37,0.00016438,2]
[322902812,1713490246991,-500.0,0.00016438,2]
[322902813,1713490247000,-500.0,0.00016438,2]
[322902814,1713490247010,-1317.31,0.00016438,2]
[322902815,1713490247019,-500.0,0.00016438,2]
[322902816,1713490247028,-500.0,0.00016438,2]
[322902817,1713490247037,-500.0,0.00016438,2]
[322902818,1713490247046,-500.0,0.00016438,2]
[322902819,1713490247055,-1836.61,0.00016438,2]
[322902820,1713490247064,-500.0,0.00016438,2]
[322902821,1713490247074,-520.88,0.00016438,2]
[322902822,1713490247083,-500.0,0.00016438,2]
[322902823,1713490247093,-500.0,0.00016438,2]
[322902824,1713490247103,-500.0,0.00016438,2]
[322902825,1713490247111,-500.0,0.00016438,2]
[322902826,1713490247120,-500.0,0.00016438,2]
[322902827,1713490247129,-500.0,0.00016438,2]
[322902828,1713490247138,-2675.66,0.00016438,2]
[322902829,1713490247147,-500.0,0.00016438,2]
[322902830,1713490247156,-1245.49,0.00016438,2]
[322902831,1713490247165,-500.0,0.00016438,2]
[322902832,1713490247174,-1380.02,0.00016438,2]
[322902833,1713490247183,-500.0,0.00016438,2]
[322902834,1713490247192,-500.0,0.00016438,2]
[322902835,1713490247201,-919.2,0.00016438,2]
[322902836,1713490247211,-3204.35,0.00016438,2]
[322902837,1713490247220,-767.35,0.00016438,2]
[322902838,1713490247229,-500.0,0.00016438,2]
[322902839,1713490247238,-500.0,0.00016438,2]
[322902840,1713490247247,-617.17,0.00016438,2]
[322902841,1713490247256,-500.0,0.00016438,2]
[322902842,1713490247265,-2043.35,0.00016438,2]
[322902843,1713490247275,-645.77465647,0.00016438,2]
[322902844,1713490247284,-2157.68,0.00016438,2]
[322902845,1713490247293,-500.0,0.00016438,2]
[322902846,1713490247302,-500.0,0.00016438,2]
[322902847,1713490247311,-2173.25,0.00016438,2]
[322902848,1713490247320,-4418.79,0.00016438,2]
[322902849,1713490247331,-645.83,0.00016438,2]
[322902850,1713490247340,-500.0,0.00016438,2]
[322902851,1713490247349,-6109.14,0.00016438,2]
[322902852,1713490247358,-500.0,0.00016438,2]
[322902853,1713490247367,-536.46,0.00016438,2]
[322902854,1713490247376,-2079.78,0.00016438,2]
[322902855,1713490247385,-3207.98,0.00016438,2]
[322902856,1713490247395,-500.0,0.00016438,2]
[322902857,1713490247404,-2152.37,0.00016438,2]
[322902858,1713490247413,-500.0,0.00016438,2]
[322902859,1713490247423,-2781.9,0.00016438,2]
[322902860,1713490247432,-3474.05,0.00016438,2]
[322902861,1713490247441,-728.28,0.00016438,2]
[322902862,1713490247451,-500.0,0.00016438,2]
[322902863,1713490247460,-532.39,0.00016438,2]
[322902864,1713490247469,-2153.21,0.00016438,2]
[322902865,1713490247479,-500.0,0.00016438,2]
[322902866,1713490247490,-1064.64,0.00016438,2]
[322902867,1713490247499,-500.0,0.00016438,2]
[322902868,1713490247508,-602.35,0.00016438,2]
[322902869,1713490247517,-1012.01,0.00016438,2]
[322902870,1713490247526,-2399.42,0.00016438,2]
[322902871,1713490247536,-500.0,0.00016438,2]
[322902872,1713490247545,-2710.29,0.00016438,2]
[322902873,1713490247554,-5639.2,0.00016438,2]
[322902874,1713490247565,-4347.48,0.00016438,2]
[322902875,1713490247576,-500.0,0.00016438,2]
[322902876,1713490247585,-1216.71,0.00016438,2]
[322902877,1713490247594,-578.35,0.00016438,2]
[322902878,1713490247603,-750.47,0.00016438,2]
[322902879,1713490247612,-500.0,0.00016438,2]
[322902880,1713490247622,-2167.64,0.00016438,2]
[322902881,1713490247631,-3723.94,0.00016438,2]
[322902882,1713490247640,-505.37,0.00016438,2]
[322902883,1713490247649,-587.9,0.00016438,2]
[322902884,1713490247658,-500.0,0.00016438,2]
[322902885,1713490247667,-500.0,0.00016438,2]
[322902886,1713490247676,-500.0,0.00016438,2]
[322902887,1713490247685,-978.29,0.00016438,2]
[322902888,1713490247694,-2169.95,0.00016438,2]
[322902889,1713490247704,-1012.16,0.00016438,2]
[322902890,1713490247713,-500.0,0.00016438,2]
[322902891,1713490247722,-524.05,0.00016438,2]
[322902892,1713490247731,-515.33,0.00016438,2]
[322902893,1713490247740,-500.0,0.00016438,2]
[322902894,1713490247749,-500.0,0.00016438,2]
[322902895,1713490247758,-5700.76,0.00016438,2]
[322902896,1713490247768,-2122.41,0.00016438,2]
[322902897,1713490247777,-500.0,0.00016438,2]
[322902898,1713490247786,-393.32,0.00016438,2]
[322902899,1713490247795,-2418.72,0.00016438,2]
[322902900,1713490247805,-1136.15,0.00016438,2]
[322902901,1713490247814,-500.0,0.00016438,2]
[322902902,1713490247826,-833.08,0.00016438,2]
[322902903,1713490247835,-5316.73,0.00016438,2]
[322902904,1713490247844,-1733.57,0.00016438,2]
[322902905,1713490247854,-1489.9,0.00016438,2]
[322902906,1713490247863,-500.0,0.00016438,2]
[322902907,1713490247872,-830.06,0.00016438,2]
[322902908,1713490247882,-500.0,0.00016438,2]
[322902909,1713490247891,-2246.67,0.00016438,2]
[322902910,1713490247900,-4933.71,0.00016438,2]
[322902911,1713490247910,-500.0,0.00016438,2]
[322902912,1713490247920,-500.0,0.00016438,2]
[322902913,1713490247929,-738.47,0.00016438,2]
[322902914,1713490247940,-2537.73,0.00016438,2]
[322902915,1713490247949,-500.0,0.00016438,2]
[322902916,1713490247959,-500.0,0.00016438,2]
[322902917,1713490247971,-1515.83,0.00016438,2]
[322902918,1713490247981,-500.0,0.00016438,2]
[322902919,1713490247992,-4454.84,0.00016438,2]
[322902920,1713490248001,-500.0,0.00016438,2]
[322902921,1713490248011,-500.0,0.00016438,2]
[322902922,1713490248023,-628.19,0.00016438,2]
[322902923,1713490248032,-253.20795201,0.00016438,2]
[322902924,1713490248042,-649.2,0.00016438,2]
[322902925,1713490248051,-500.0,0.00016438,2]
[322902926,1713490248060,-2343.56,0.00016438,2]
[322902927,1713490248069,-1739.77,0.00016438,2]
[322902928,1713490248080,-2356.65,0.00016438,2]
[322902929,1713490248089,-500.0,0.00016438,2]
[322902930,1713490248099,-500.0,0.00016438,2]
[322902931,1713490248108,-1329.96,0.00016438,2]
[322902932,1713490248117,-2624.59,0.00016438,2]
[322902933,1713490248126,-1241.65,0.00016438,2]
[322902934,1713490248137,-1989.13,0.00016438,2]
[322902935,1713490248146,-500.0,0.00016438,2]
[322902936,1713490248156,-2485.75,0.00016438,2]
[322902937,1713490248166,-5000.0,0.00016438,2]
[322902938,1713490248176,-500.0,0.00016438,2]
[322902939,1713490248186,-3393.61,0.00016438,2]
[322902940,1713490248197,-500.0,0.00016438,2]
[322902941,1713490248206,-500.0,0.00016438,2]
[322902942,1713490248216,-500.0,0.00016438,2]
[322902943,1713490248225,-500.0,0.00016438,2]
[322902944,1713490248236,-990.34,0.00016438,2]
[322902945,1713490248245,-500.0,0.00016438,2]
[322902946,1713490248255,-500.0,0.00016438,2]
[322902947,1713490248265,-500.0,0.00016438,2]
[322902948,1713490248274,-3173.13,0.00016438,2]
[322902949,1713490248284,-2021.1,0.00016438,2]
[322902950,1713490248294,-500.0,0.00016438,2]
[322902951,1713490248303,-453.46715594,0.00016438,2]
[322902952,1713490248312,-500.0,0.00016438,2]
[322902953,1713490248321,-4491.11,0.00016438,2]
[322902954,1713490248334,-500.0,0.00016438,2]
[322902955,1713490248343,-1391.89,0.00016438,2]
[322902956,1713490248353,-500.0,0.00016438,2]
[322902957,1713490248362,-500.0,0.00016438,2]
[322902958,1713490248371,-500.0,0.00016438,2]
[322902959,1713490248380,-1745.76,0.00016438,2]
[322902960,1713490248389,-2812.07,0.00016438,2]
[322902961,1713490248398,-500.0,0.00016438,2]
[322902962,1713490248407,-1621.5,0.00016438,2]
[322902963,1713490248417,-1187.36,0.00016438,2]
[322902964,1713490248426,-500.0,0.00016438,2]
[322902965,1713490248435,-1095.69,0.00016438,2]
[322902966,1713490248444,-500.0,0.00016438,2]
[322902967,1713490248454,-3318.76,0.00016438,2]
[322902968,1713490248466,-500.0,0.00016438,2]
[322902969,1713490248476,-1527.76,0.00016438,2]
[322902970,1713490248488,-931.18,0.00016438,2]
[322902971,1713490248497,-500.0,0.00016438,2]
[322902972,1713490248507,-879.98,0.00016438,2]
[322902973,1713490248516,-500.0,0.00016438,2]
[322902974,1713490248787,-500.0,0.00016438,2]
[322902975,1713490248797,-500.0,0.00016438,2]
[322902976,1713490248806,-3461.14,0.00016438,2]
[322902977,1713490248816,-500.0,0.00016438,2]
[322902978,1713490248828,-4886.3,0.00016438,2]
[322902979,1713490248838,-500.0,0.00016438,2]
[322902980,1713490248848,-500.0,0.00016438,2]
[322902981,1713490248857,-4431.66,0.00016438,2]
[322902982,1713490248867,-500.0,0.00016438,2]
[322902983,1713490248876,-500.0,0.00016438,2]
[322902984,1713490248885,-500.0,0.00016438,2]
[322902985,1713490248895,-500.0,0.00016438,2]
[322902986,1713490248904,-1458.54,0.00016438,2]
[322902987,1713490248914,-500.0,0.00016438,2]
[322902988,1713490248923,-500.0,0.00016438,2]
[322902989,1713490248932,-500.0,0.00016438,2]
[322902990,1713490248941,-3727.53,0.00016438,2]
[322902991,1713490248950,-3727.53,0.00016438,2]
[322902992,1713490248960,-1658.31,0.00016438,2]
[322902993,1713490248969,-3727.53,0.00016438,2]
[322902994,1713490248978,-1658.31,0.00016438,2]
[322902995,1713490248987,-3727.53,0.00016438,2]
[322902996,1713490248997,-1658.31,0.00016438,2]
[322902997,1713490249006,-3727.53,0.00016438,2]
[322902998,1713490249015,-3083.19,0.00016438,2]
[322902999,1713490249025,-1658.31,0.00016438,2]
[322903000,1713490249035,-3727.53,0.00016438,2]
[322903001,1713490249045,-1658.31,0.00016438,2]
[322903002,1713490249054,-3727.53,0.00016438,2]
[322903003,1713490249063,-1658.31,0.00016438,2]
[322903004,1713490249073,-3727.53,0.00016438,2]
[322903005,1713490249086,-1658.31,0.00016438,2]
[322903006,1713490249096,-1597.62,0.00016438,2]
[322903007,1713490249105,-3727.53,0.00016438,2]
[322903008,1713490249114,-1658.31,0.00016438,2]
[322903009,1713490249124,-1459.03,0.00016438,2]
[322903010,1713490249134,-3727.53,0.00016438,2]
[322903011,1713490249143,-500.0,0.00016438,2]
[322903012,1713490249152,-1658.31,0.00016438,2]
[322903013,1713490249162,-3727.53,0.00016438,2]
[322903014,1713490249172,-1658.31,0.00016438,2]
[322903015,1713490249182,-500.0,0.00016438,2]
[322903016,1713490249191,-3727.53,0.00016438,2]
[322903017,1713490249200,-1658.31,0.00016438,2]
[322903018,1713490249209,-3727.53,0.00016438,2]
[322903019,1713490249219,-2455.63,0.00016438,2]
[322903020,1713490249228,-1658.31,0.00016438,2]
[322903021,1713490249238,-500.0,0.00016438,2]
[322903022,1713490249247,-3727.53,0.00016438,2]
[322903023,1713490249257,-1658.31,0.00016438,2]
[322903024,1713490249266,-3727.53,0.00016438,2]
[322903025,1713490249277,-1658.31,0.00016438,2]
[322903026,1713490249286,-3727.53,0.00016438,2]
[322903027,1713490249295,-3727.53,0.00016438,2]
[322903028,1713490249305,-1658.31,0.00016438,2]
[322903029,1713490249317,-3727.53,0.00016438,2]
[322903030,1713490249328,-3727.53,0.00016438,2]
[322903031,1713490249337,-1658.31,0.00016438,2]
[322903032,1713490249347,-1658.31,0.00016438,2]
[322903033,1713490249357,-3727.53,0.00016438,2]
[322903034,1713490249366,-500.0,0.00016438,2]
[322903035,1713490249375,-1658.31,0.00016438,2]
[322903036,1713490249385,-3727.53,0.00016438,2]
[322903037,1713490249395,-500.0,0.00016438,2]
[322903038,1713490249404,-3727.53,0.00016438,2]
[322903039,1713490249414,-1658.31,0.00016438,2]
[322903040,1713490249424,-1039.87,0.00016438,2]
[322903041,1713490249433,-1658.31,0.00016438,2]
[322903042,1713490249443,-3727.53,0.00016438,2]
[322903043,1713490249453,-1658.31,0.00016438,2]
[322903044,1713490249463,-3727.71660543,0.00016438,2]
[322903045,1713490249472,-500.0,0.00016438,2]
[322903046,1713490249483,-1658.31,0.00016438,2]
[322903047,1713490249496,-1205.69,0.00016438,2]
[322903048,1713490249506,-500.0,0.00016438,2]
[322903049,1713490249516,-1658.31,0.00016438,2]
[322903050,1713490249526,-1658.3825811,0.00016438,2]
[322903051,1713490249536,-857.27,0.00016438,2]
[322903052,1713490249546,-763.75,0.00016438,2]
[322903053,1713490249556,-500.0,0.00016438,2]
[322903054,1713490249568,-500.0,0.00016438,2]
[322903055,1713490249581,-500.0,0.00016438,2]
[322903056,1713490249591,-953.01,0.00016438,2]
[322903057,1713490249601,-2797.93,0.00016438,2]
[322903058,1713490249612,-500.0,0.00016438,2]
[322903059,1713490249622,-512.42599063,0.00016438,2]
[322903060,1713490249632,-961.34,0.00016438,2]
[322903061,1713490249641,-512.26158435,0.00016438,2]
[322903062,1713490249652,-500.0,0.00016438,2]
[322903063,1713490249662,-692.49,0.00016438,2]
[322903064,1713490249673,-6108.32,0.00016438,2]
[322903065,1713490249683,-3604.65,0.00016438,2]
[322903066,1713490249692,-2468.53,0.00016438,2]
[322903067,1713490249702,-848.66,0.00016438,2]
[322903068,1713490249712,-500.0,0.00016438,2]
[322903069,1713490249722,-500.0,0.00016438,2]
[322903070,1713490249732,-500.0,0.00016438,2]
[322903071,1713490249741,-4499.52,0.00016438,2]
[322903072,1713490249751,-500.0,0.00016438,2]
[322903073,1713490249761,-500.0,0.00016438,2]
[322903074,1713490249770,-500.0,0.00016438,2]
[322903075,1713490249780,-500.0,0.00016438,2]
[322903076,1713490249789,-706.55,0.00016438,2]
[322903077,1713490249799,-1095.11,0.00016438,2]
[322903078,1713490249809,-829.97,0.00016438,2]
[322903079,1713490249818,-3678.81,0.00016438,2]
[322903080,1713490249829,-500.0,0.00016438,2]
[322903081,1713490249839,-1005.18,0.00016438,2]
[322903082,1713490249851,-675.44,0.00016438,2]
[322903083,1713490249861,-767.39,0.00016438,2]
[322903084,1713490249870,-500.0,0.00016438,2]
[322903085,1713490249880,-2986.59,0.00016438,2]
[322903086,1713490249890,-500.0,0.00016438,2]
[322903087,1713490249899,-583.31623644,0.00016438,2]
[322903088,1713490249909,-500.0,0.00016438,2]
[322903089,1713490249919,-505.22299758,0.00016438,2]
[322903090,1713490249929,-1084.95,0.00016438,2]
[322903091,1713490249939,-500.0,0.00016438,2]
[322903092,1713490249949,-500.0,0.00016438,2]
[322903093,1713490249958,-500.0,0.00016438,2]